bitfinex/quotes_BTCUSD_20250526
["timestamp","ask_amount","ask_price","bid_price","bid_amount"]
[1748282749006,1.5082857,109120.0,109110.0,5.97815199]
[1748282749223,1.5102857,109120.0,109110.0,5.98515199]
[1748282749625,1.5092857,109120.0,109110.0,5.98115199]
[1748282750047,1.5092857,109120.0,109110.0,5.95202116]
[1748282750271,1.5082857,109120.0,109110.0,5.94902116]
[1748282750498,1.5082857,109120.0,109110.0,5.99902116]
[1748282750723,0.8609167,109120.0,109110.0,5.36630416]
[1748282750956,4e-05,109140.0,109130.0,0.52826766]
[1748282751169,4e-05,109140.0,109130.0,4.0157923]
[1748282751170,0.00017695,109140.0,109130.0,4.0157923]
[1748282751612,0.00017695,109140.0,109130.0,4.0302923]
[1748282752254,0.00017695,109140.0,109130.0,4.5283923]
[1748282752699,0.0623,109180.0,109170.0,0.56522042]
[1748282752952,0.0627978,109180.0,109170.0,3.90559098]
[1748282753168,0.09943251,109180.0,109170.0,3.58245013]
[1748282753380,0.0902735,109180.0,109170.0,3.91852513]
[1748282753598,0.0627978,109180.0,109170.0,3.91852513]
[1748282754011,0.07195623,109180.0,109170.0,3.91852513]
[1748282754486,0.0627978,109180.0,109170.0,3.91852513]
[1748282754700,0.07195631,109180.0,109170.0,3.91852513]
[1748282754920,0.07395631,109180.0,109170.0,3.91852513]
[1748282755132,0.07595623,109180.0,109170.0,3.91852513]
[1748282755340,0.08511482,109180.0,109170.0,3.91852513]
[1748282755585,0.07595623,109180.0,109170.0,3.93251711]
[1748282755802,0.07595631,109180.0,109170.0,3.93251711]
[1748282756018,0.0667978,109180.0,109170.0,3.93251711]
[1748282757164,0.0667978,109180.0,109170.0,3.94705796]
[1748282757809,0.094274,109180.0,109170.0,3.93251711]
[1748282758023,0.09427375,109180.0,109170.0,3.93251711]
[1748282758259,0.09427375,109180.0,109170.0,3.9423301]
[1748282758468,0.0851149,109180.0,109170.0,3.9423301]
[1748282758681,0.09427366,109180.0,109170.0,3.9423301]
[1748282758859,0.08511499,109180.0,109170.0,3.9423301]
[1748282759074,0.27745757,109180.0,109170.0,3.42305053]
[1748282759289,0.27745816,109180.0,109170.0,3.78669644]
[1748282759541,0.27745816,109180.0,109170.0,3.79585621]
[1748282759758,0.28661734,109180.0,109170.0,3.28581599]
[1748282759988,0.81737659,109180.0,109170.0,1.73758999]
[1748282760193,0.81737659,109180.0,109170.0,1.9207905]
[1748282760421,0.80821749,109180.0,109170.0,1.58471001]
[1748282760654,0.25914071,109180.0,109170.0,1.42791052]
[1748282760903,0.80621749,109180.0,109170.0,1.42791052]
[1748282761137,0.81021749,109180.0,109170.0,1.43707037]
[1748282761365,0.26114071,109180.0,109170.0,1.77707037]
[1748282761581,0.09427442,109180.0,109170.0,1.79538949]
[1748282761796,0.29061725,109180.0,109170.0,1.79538949]
[1748282762009,0.29061725,109180.0,109170.0,1.77707037]
[1748282762010,0.28145857,109180.0,109170.0,1.77707037]
[1748282762228,0.28145857,109180.0,109170.0,1.79538983]
[1748282762439,0.08911524,109180.0,109170.0,1.80454926]
[1748282762654,0.0707978,109180.0,109170.0,1.80454926]
[1748282763306,0.0707978,109180.0,109170.0,1.89409482]
[1748282763969,0.0707978,109180.0,109170.0,1.92156882]
[1748282764905,0.0707978,109180.0,109170.0,1.9324624]
[1748282766390,0.07995631,109180.0,109170.0,1.9324624]
[1748282766608,0.0891149,109180.0,109170.0,1.9324624]
[1748282766795,0.07995631,109180.0,109170.0,1.9324624]
[1748282767218,0.0707978,109180.0,109170.0,1.9324624]
[1748282767642,0.07995623,109180.0,109170.0,1.9324624]
[1748282768452,0.07995623,109180.0,109170.0,1.9324224]
[1748282769323,0.07995623,109180.0,109170.0,1.94694718]
[1748282769507,0.0707978,109180.0,109170.0,1.94694718]
[1748282769719,0.07995623,109180.0,109170.0,1.94694718]
[1748282769928,0.09827367,109180.0,109170.0,1.94694718]
[1748282770155,0.08911482,109180.0,109170.0,1.94694718]
[1748282770385,0.0707978,109180.0,109170.0,1.70134435]
[1748282770596,0.0707978,109180.0,109170.0,1.68681957]
[1748282770805,0.08911491,109180.0,109170.0,1.68681957]
[1748282771022,0.83053476,109180.0,109170.0,1.00053158]
[1748282771239,0.82137608,109180.0,109170.0,0.81105758]
[1748282771447,0.82137608,109180.0,109170.0,1.3101243]
[1748282771660,0.82137608,109180.0,109170.0,0.9701243]
[1748282771873,0.82137608,109180.0,109170.0,0.96096445]
[1748282772092,0.82137608,109180.0,109170.0,0.97122293]
[1748282772720,0.82137608,109180.0,109170.0,0.98038278]
[1748282772933,0.82988167,109180.0,109170.0,0.47042248]
[1748282773155,0.82072291,109180.0,109170.0,0.93722699]
[1748282773682,0.82072291,109180.0,109170.0,1.09402648]
[1748282773911,0.82072291,109180.0,109170.0,0.96894699]
[1748282774116,0.82072291,109180.0,109170.0,1.12454701]
[1748282774542,0.82072291,109180.0,109170.0,0.93218648]
[1748282774774,0.82072291,109180.0,109170.0,0.63285293]
[1748282774972,0.82072291,109180.0,109170.0,0.34958293]
[1748282775186,0.19236036,109170.0,109160.0,0.01089358]
[1748282775462,0.8943827,109170.0,109160.0,0.01089358]
[1748282775667,0.35381151,109170.0,109160.0,0.01089358]
[1748282775874,0.90288829,109170.0,109160.0,0.35089358]
[1748282776300,0.90288829,109170.0,109160.0,0.34]
[1748282776507,0.90588829,109170.0,109160.0,1.320042]
[1748282776714,0.90988829,109170.0,109160.0,0.757599]
[1748282777933,0.36081151,109170.0,109160.0,0.7675562]
[1748282778150,0.90988829,109170.0,109160.0,0.7675562]
[1748282782113,0.9013827,109170.0,109160.0,0.7675562]
[1748282785248,0.09787964,109170.0,109160.0,0.96909462]
[1748282785459,0.28108015,109170.0,109160.0,0.96909462]
[1748282786452,0.28108015,109170.0,109160.0,0.95993418]
[1748282786652,0.82099716,109170.0,109160.0,0.92492978]
[1748282786858,0.27192038,109170.0,109160.0,1.1356289]
[1748282787030,0.09787872,109170.0,109160.0,1.14478917]
[1748282787274,0.10703857,109170.0,109160.0,1.14478917]
[1748282787472,0.29939902,109170.0,109160.0,1.14478917]
[1748282787866,0.11619851,109170.0,109160.0,1.14478917]
[1748282788635,0.29939902,109170.0,109160.0,1.14478917]
[1748282789605,0.29939902,109170.0,109160.0,1.1356289]
[1748282789892,0.29939902,109170.0,109160.0,0.77844978]
[1748282789893,0.82099725,109170.0,109160.0,0.77844978]
[1748282790098,0.82099725,109170.0,109160.0,0.84759878]
[1748282792709,0.82099725,109170.0,109160.0,0.70111878]
[1748282792945,0.82099725,109170.0,109160.0,0.64474878]
[1748282793544,0.82099725,109170.0,109160.0,0.82796607]
[1748282793745,0.82099725,109170.0,109160.0,0.64474878]
[1748282793961,0.82099725,109170.0,109160.0,0.83712685]
[1748282794161,0.81183731,109170.0,109160.0,0.82796607]
[1748282794319,0.81183731,109170.0,109160.0,0.64474878]
[1748282794522,0.26276053,109170.0,109160.0,0.83712693]
[1748282795535,0.26276053,109170.0,109160.0,0.64474878]
[1748282796844,0.81183731,109170.0,109160.0,0.64474878]
[1748282797474,0.81183731,109170.0,109160.0,0.79122878]
[1748282797700,0.90138287,109170.0,109160.0,0.64474878]
[1748282799926,0.90138287,109170.0,109160.0,0.46206378]
[1748282800100,0.90138287,109170.0,109160.0,0.36085078]
[1748282800330,0.90138287,109170.0,109160.0,0.46982978]
[1748282806068,0.90138287,109170.0,109150.0,0.01452478]
[1748282806069,0.19237798,109160.0,109150.0,0.01452478]
[1748282806348,1.73851098,109160.0,109150.0,0.01452478]
[1748282806563,1.75223065,109160.0,109150.0,0.01452478]
[1748282806778,0.81557061,109130.0,109120.0,0.02908736]
[1748282806992,1.05159617,109130.0,109120.0,0.02908736]
[1748282807435,0.1924485,109120.0,109110.0,0.02162742]
[1748282807666,0.80272528,109120.0,109110.0,0.65573842]
[1748282808085,0.76879601,109120.0,109110.0,0.65587537]
[1748282808957,0.77079601,109120.0,109110.0,0.65587537]
[1748282809571,0.77179601,109120.0,109110.0,0.65687537]
[1748282811192,0.2566485,109120.0,109110.0,0.65687537]
[1748282811421,0.07336405,109120.0,109110.0,0.84017662]
[1748282811645,0.21377669,109120.0,109110.0,0.86767095]
[1748282811864,0.02132776,109120.0,109110.0,0.87683542]
[1748282812077,0.03965494,109120.0,109110.0,0.87683542]
[1748282812522,0.03049097,109120.0,109110.0,0.87683542]
[1748282812746,0.003,109120.0,109110.0,0.99538098]
[1748282814321,0.02132717,109120.0,109110.0,0.96638098]
[1748282815319,0.02132717,109120.0,109110.0,0.9563494]
[1748282815528,0.03049089,109120.0,109110.0,0.9563494]
[1748282816423,0.03049097,109120.0,109110.0,0.9563494]
[1748282816878,0.003,109120.0,109110.0,0.9563494]
[1748282817086,0.02132751,109120.0,109110.0,0.9563494]
[1748282817365,0.01216363,109120.0,109110.0,0.9563494]
[1748282817806,0.02132743,109120.0,109110.0,0.9563494]
[1748282818052,0.01216355,109120.0,109110.0,0.9563494]
[1748282819739,0.003,109120.0,109110.0,0.9853494]
[1748282819940,0.01216355,109120.0,109110.0,0.9853494]
[1748282820064,0.01216346,109120.0,109110.0,0.9853494]
[1748282820489,0.02132701,109120.0,109110.0,0.9853494]
[1748282820703,0.003,109120.0,109110.0,1.1726694]
[1748282820917,0.003,109120.0,109110.0,1.1470694]
[1748282821133,0.003,109120.0,109110.0,1.1726694]
[1748282821351,0.01216355,109120.0,109110.0,1.1726694]
[1748282821857,0.003,109120.0,109110.0,1.1726694]
[1748282822071,0.01216355,109120.0,109110.0,1.1180694]
[1748282822455,0.003,109120.0,109110.0,1.1180694]
[1748282822875,0.003,109120.0,109110.0,1.1726694]
[1748282823326,0.003,109120.0,109110.0,1.18721025]
[1748282823548,0.003,109120.0,109110.0,1.26969725]
[1748282824191,0.001,109120.0,109110.0,1.26969725]
[1748282825267,0.02748368,109150.0,109110.0,1.26969725]
[1748282825268,0.28417962,109150.0,109140.0,0.53241332]
[1748282825528,0.25669594,109150.0,109140.0,2.481615]
[1748282825756,0.25669594,109150.0,109140.0,2.56870841]
[1748282825973,0.25669594,109150.0,109140.0,2.376295]
[1748282826112,0.24753432,109150.0,109140.0,2.55954587]
[1748282826330,0.24753432,109150.0,109140.0,2.376295]
[1748282826533,0.24753432,109150.0,109140.0,0.650345]
[1748282826534,0.76268183,109150.0,109140.0,0.650345]
[1748282826959,0.76268183,109150.0,109140.0,0.651345]
[1748282828562,0.24753432,109150.0,109140.0,0.651345]
[1748282829911,0.79664306,109150.0,109140.0,0.651345]
[1748282834009,0.79664306,109150.0,109140.0,0.311345]
[1748282834220,0.79664306,109150.0,109140.0,0.126005]
[1748282834901,0.79764306,109150.0,109140.0,0.126005]
[1748282835325,0.79764306,109150.0,109140.0,0.125005]
[1748282835653,0.79864306,109150.0,109140.0,0.125005]
[1748282836149,0.79864306,109150.0,109140.0,0.104095]
[1748282837700,0.25481324,109140.0,109130.0,3.046436]
[1748282837955,0.80392198,109140.0,109130.0,3.046436]
[1748282838975,0.80392198,109140.0,109130.0,2.808692]
[1748282839194,0.80392198,109140.0,109130.0,2.809692]
[1748282843363,0.80392198,109140.0,109130.0,2.357537]
[1748282843870,0.80392198,109140.0,109130.0,1.930282]
[1748282844745,0.80392198,109140.0,109130.0,0.612711]
[1748282845036,0.25481324,109140.0,109130.0,0.612711]
[1748282845296,0.80392198,109140.0,109130.0,0.612711]
[1748282849257,0.80392198,109140.0,109130.0,0.272711]
[1748282852803,0.80392198,109140.0,109130.0,0.117989]
[1748282853543,0.80392198,109140.0,109130.0,0.10761]
[1748282854657,0.95044198,109140.0,109130.0,0.10761]
[1748282854860,0.95044198,109140.0,109130.0,0.002]
[1748282855069,0.95044198,109140.0,109130.0,2.469692]
[1748282855537,0.40133324,109140.0,109130.0,2.469692]
[1748282855746,0.95044198,109140.0,109130.0,2.469692]
[1748282856225,0.95044198,109140.0,109130.0,2.809692]
[1748282856705,1.03998754,109140.0,109130.0,2.809692]
[1748282857476,1.12950905,109140.0,109130.0,2.809692]
[1748282857763,1.03998754,109140.0,109130.0,0.342]
[1748282858026,1.03998754,109140.0,109130.0,0.002]
[1748282858294,1.04991109,109140.0,109130.0,0.002]
[1748282858535,0.25853087,109130.0,109120.0,0.00967324]
[1748282858794,0.98670668,109130.0,109120.0,0.00967324]
[1748282859016,0.2585485,109120.0,109110.0,0.01173279]
[1748282859226,0.95417724,109120.0,109110.0,0.28777479]
[1748282860394,0.95417724,109120.0,109110.0,0.24495079]
[1748282861299,0.95517724,109120.0,109110.0,0.24495079]
[1748282861502,0.95617724,109120.0,109110.0,0.24495079]
[1748282862021,0.95617724,109120.0,109110.0,0.25481314]
[1748282864665,0.95617724,109120.0,109110.0,0.24255214]
[1748282865343,0.95617724,109120.0,109110.0,0.22869214]
[1748282866708,0.95617724,109120.0,109110.0,0.2396528]
[1748282868170,0.95617724,109120.0,109110.0,0.5796528]
[1748282869637,1.0457228,109120.0,109110.0,0.5796528]
[1748282870287,1.0457228,109120.0,109110.0,0.56805696]
[1748282875898,0.49661406,109120.0,109110.0,0.56805696]
[1748282876110,1.0457228,109120.0,109110.0,0.56805696]
[1748282876986,1.0457228,109120.0,109110.0,0.30990821]
[1748282877348,1.0457228,109120.0,109110.0,0.83679921]
[1748282877751,1.0457228,109120.0,109110.0,0.74723521]
[1748282879512,1.0457228,109120.0,109110.0,0.76464016]
[1748282882042,1.0457228,109120.0,109110.0,0.74853316]
[1748282884025,1.0457628,109120.0,109110.0,0.74853316]
[1748282884454,1.0457628,109120.0,109110.0,0.71936216]
[1748282884896,1.13528431,109120.0,109110.0,0.32731316]
[1748282885135,1.0457628,109120.0,109110.0,0.01740495]
[1748282885531,0.25506614,109110.0,109100.0,0.34]
[1748282885743,0.80417488,109110.0,109100.0,0.34]
[1748282885957,0.80417488,109110.0,109100.0,1.344703]
[1748282885958,0.25506614,109110.0,109100.0,1.344703]
[1748282886165,0.81333969,109110.0,109100.0,1.344703]
[1748282886864,0.81333969,109110.0,109100.0,1.345703]
[1748282887631,0.90288525,109110.0,109100.0,0.001]
[1748282887872,0.90288525,109110.0,109100.0,0.01559927]
[1748282888259,0.90288525,109110.0,109100.0,0.01659927]
[1748282888675,0.90288525,109110.0,109100.0,0.01559927]
[1748282888831,0.90388525,109110.0,109100.0,0.01559927]
[1748282889042,0.25728378,109100.0,109090.0,0.34]
[1748282889267,0.95295252,109100.0,109090.0,0.668487]
[1748282889874,0.95295252,109100.0,109090.0,0.68638868]
[1748282890095,0.95295252,109100.0,109090.0,0.68738868]
[1748282891071,1.04249808,109100.0,109090.0,0.68738868]
[1748282891282,1.13201959,109100.0,109090.0,0.68738868]
[1748282891500,1.13301959,109100.0,109090.0,0.68838868]
[1748282892332,1.04349808,109100.0,109090.0,0.68838868]
[1748282895530,1.04353808,109100.0,109090.0,0.68838868]
[1748282896800,1.04353808,109100.0,109090.0,0.01990168]
[1748282897087,1.04353808,109100.0,109090.0,0.17201468]
[1748282898754,1.04353808,109100.0,109090.0,0.51201468]
[1748282900384,0.19250151,109090.0,109080.0,0.2016858]
[1748282900619,0.01833272,109090.0,109080.0,0.25643511]
[1748282900817,0.02749912,109090.0,109080.0,2.38325134]
[1748282901227,0.04583175,109090.0,109080.0,2.39241841]
[1748282901431,0.22916661,109090.0,109080.0,2.39241841]
[1748282901640,0.23016661,109090.0,109080.0,2.39541841]
[1748282901967,0.0376651,109090.0,109080.0,2.39541841]
[1748282902174,0.23016661,109090.0,109080.0,2.39541841]
[1748282902386,0.23016661,109090.0,109080.0,2.73541841]
[1748282902616,0.23116661,109090.0,109080.0,2.73741841]
[1748282903228,0.04783175,109090.0,109080.0,2.73741841]
[1748282904160,0.0386651,109090.0,109080.0,2.75525093]
[1748282905121,0.0386651,109090.0,109080.0,2.73741841]
[1748282906739,0.22199996,109090.0,109080.0,2.73741841]
[1748282906959,0.04783175,109090.0,109080.0,2.82937841]
[1748282907371,0.0387051,109090.0,109080.0,2.82937841]
[1748282907587,0.0387051,109090.0,109080.0,2.85837841]
[1748282909142,0.22203996,109090.0,109080.0,2.85837841]
[1748282909350,0.04787175,109090.0,109080.0,2.82937841]
[1748282909969,0.00204,109090.0,109080.0,2.85837841]
[1748282910181,0.00204,109090.0,109080.0,2.88397841]
[1748282910389,0.01120607,109090.0,109080.0,2.88397841]
[1748282910611,0.00204,109090.0,109080.0,2.88397841]
[1748282910823,0.01120607,109090.0,109080.0,2.88397841]
[1748282911023,0.00204,109090.0,109080.0,2.88397841]
[1748282911239,0.00204,109090.0,109080.0,2.97352397]
[1748282915664,0.01120598,109090.0,109080.0,2.97352397]
[1748282916102,0.01120598,109090.0,109080.0,2.94792397]
[1748282916310,0.02037213,109090.0,109080.0,2.94792397]
[1748282917242,0.01120598,109090.0,109080.0,2.94792397]
[1748282917475,0.89303354,109090.0,109080.0,2.45363131]
[1748282917699,0.88842952,109090.0,109080.0,0.00514931]
[1748282917917,1.12453508,109090.0,109080.0,0.00514931]
[1748282918399,1.12353508,109090.0,109080.0,0.00314931]
[1748282918838,1.12453508,109090.0,109080.0,0.00314931]
[1748282919729,1.12653508,109090.0,109080.0,0.00414931]
[1748282920331,1.21605659,109090.0,109080.0,0.00414931]
[1748282920970,1.12653508,109090.0,109080.0,0.00414931]
[1748282922497,1.05402205,109090.0,109080.0,0.00414931]
[1748282922951,1.62767164,109090.0,109080.0,0.00414931]
[1748282923827,0.52845416,109090.0,109080.0,0.00414931]
[1748282924037,1.62667164,109090.0,109080.0,0.00414931]
[1748282924272,1.62867164,109090.0,109080.0,0.00514931]
[1748282924487,1.71819315,109090.0,109080.0,0.00514931]
[1748282924831,1.71619315,109090.0,109080.0,0.00414931]
[1748282925065,1.71619315,109090.0,109080.0,0.00514931]
[1748282925066,1.72119315,109090.0,109080.0,0.00514931]
[1748282925274,1.71819315,109090.0,109080.0,0.00114931]
[1748282925683,1.72019315,109090.0,109080.0,0.00114931]
[1748282925889,1.71819315,109090.0,109080.0,0.00114931]
[1748282926459,1.72319315,109090.0,109080.0,0.00114931]
[1748282926598,0.62497567,109090.0,109080.0,0.00114931]
[1748282926806,1.72319315,109090.0,109080.0,0.00114931]
[1748282927072,1.17408441,109090.0,109080.0,0.00114931]
[1748282928035,1.72319315,109090.0,109080.0,0.00114931]
[1748282933125,1.56663315,109090.0,109080.0,0.00114931]
[1748282933339,0.91346205,109090.0,109080.0,0.00114931]
[1748282933550,0.36435331,109090.0,109080.0,0.34114931]
[1748282933758,0.91346205,109090.0,109080.0,1.78017031]
[1748282934186,0.66702719,109090.0,109080.0,1.96352197]
[1748282934409,0.01920607,109090.0,109080.0,1.99102369]
[1748282934624,0.23004047,109090.0,109080.0,1.99102377]
[1748282934850,0.76081682,109090.0,109080.0,0.47335231]
[1748282935061,0.90506238,109090.0,109080.0,0.47235231]
[1748282935267,0.90506238,109090.0,109080.0,0.47335231]
[1748282935480,0.90606238,109090.0,109080.0,0.47335231]
[1748282935773,0.90606238,109090.0,109080.0,0.47235231]
[1748282936021,0.90806238,109090.0,109080.0,0.47235231]
[1748282936418,0.90906238,109090.0,109080.0,0.47235231]
[1748282936908,0.84336238,109090.0,109080.0,0.65570397]
[1748282937112,0.29625364,109090.0,109080.0,0.65670397]
[1748282937345,0.20670808,109090.0,109080.0,0.68420595]
[1748282937555,0.21587482,109090.0,109080.0,0.68420595]
[1748282938615,0.2158744,109090.0,109080.0,0.68420595]
[1748282938820,0.22504114,109090.0,109080.0,0.67503888]
[1748282939001,0.22504114,109090.0,109080.0,0.68420612]
[1748282939879,0.22504114,109090.0,109080.0,0.69337328]
[1748282940332,0.22504039,109090.0,109080.0,0.69337328]
[1748282940550,0.22504106,109090.0,109080.0,0.71348176]
[1748282941072,0.02337281,109090.0,109080.0,0.71348117]
[1748282941282,0.03253938,109090.0,109080.0,0.74248117]
[1748282941750,0.04170603,109090.0,109080.0,0.71348117]
[1748282942027,0.02337281,109090.0,109080.0,0.71348117]
[1748282942525,0.03253938,109090.0,109080.0,0.71348117]
[1748282943622,0.00504,109090.0,109080.0,0.71348117]
[1748282943859,0.03253861,109090.0,109080.0,0.74248117]
[1748282944292,0.03253861,109090.0,109080.0,0.71348117]
[1748282944835,0.04170526,109090.0,109080.0,0.71348117]
[1748282945040,0.22504012,109090.0,109080.0,0.86008117]
[1748282945258,0.03253861,109090.0,109080.0,0.86008117]
[1748282945472,0.04170518,109090.0,109080.0,0.86008117]
[1748282945902,0.03253861,109090.0,109080.0,0.86008117]
[1748282946195,0.04170518,109090.0,109080.0,0.86008117]
[1748282947141,0.02337221,109090.0,109080.0,0.91468117]
[1748282947603,0.03253861,109090.0,109080.0,0.91468117]
[1748282948031,0.03253861,109090.0,109080.0,0.9183808]
[1748282948244,0.02337221,109090.0,109080.0,0.9183808]
[1748282948759,0.03253861,109090.0,109080.0,0.9183808]
[1748282951040,0.0417051,109090.0,109080.0,0.9183808]
[1748282951736,0.03253861,109090.0,109080.0,0.8927808]
[1748282951978,0.03253853,109090.0,109080.0,0.8927808]
[1748282953027,0.00504,109090.0,109080.0,1.00792636]
[1748282953682,0.01120598,109090.0,109080.0,1.00792636]
[1748282953882,0.00204,109090.0,109080.0,1.00792636]
[1748282954043,0.00304,109090.0,109080.0,1.00892636]
[1748282955007,0.01220615,109090.0,109080.0,1.00892636]
[1748282955211,0.01020615,109090.0,109080.0,1.00792636]
[1748282955487,0.01120615,109090.0,109080.0,1.00892636]
[1748282955728,0.02037247,109090.0,109080.0,1.00892636]
[1748282955949,0.02037238,109090.0,109080.0,0.67234501]
[1748282956160,0.28504029,109090.0,109080.0,0.84640716]
[1748282956387,0.28504029,109090.0,109080.0,0.86474122]
[1748282956871,0.28504029,109090.0,109080.0,0.91974122]
[1748282957070,0.28504029,109090.0,109080.0,0.86474122]
[1748282957327,0.29420703,109090.0,109080.0,0.86474122]
[1748282957532,0.11087217,109090.0,109080.0,0.86474122]
[1748282957742,0.10170543,109090.0,109080.0,0.86474122]
[1748282958034,0.09253878,109090.0,109080.0,0.71818122]
[1748282958239,0.10170535,109090.0,109080.0,0.84640716]
[1748282958482,0.10170535,109090.0,109080.0,0.85557415]
[1748282958683,0.29420686,109090.0,109080.0,0.85557415]
[1748282959494,0.29420745,109090.0,109080.0,0.51542484]
[1748282960674,0.28504122,109090.0,109080.0,0.50257063]
[1748282960880,0.28504122,109090.0,109080.0,0.49340347]
[1748282961088,0.27587482,109090.0,109080.0,0.50257071]
[1748282961295,0.27587482,109090.0,109080.0,0.84257071]
[1748282962030,0.81581699,109090.0,109080.0,0.48515682]
[1748282962261,0.80665034,109090.0,109080.0,0.81506848]
[1748282962489,0.80665034,109090.0,109080.0,0.83340355]
[1748282962696,0.2575416,109090.0,109080.0,0.83340355]
[1748282962876,0.2575416,109090.0,109080.0,0.84257096]
[1748282963605,0.2575416,109090.0,109080.0,0.85173829]
[1748282964136,0.2575416,109090.0,109080.0,0.70517829]
[1748282964349,0.2575416,109090.0,109080.0,0.85173829]
[1748282965204,0.2575416,109090.0,109080.0,0.81506848]
[1748282965424,0.2575416,109090.0,109080.0,0.33767606]
[1748282965643,0.80665034,109090.0,109080.0,0.48244973]
[1748282965867,0.91501384,109090.0,109080.0,0.002]
[1748282966093,1.53663561,109090.0,109080.0,0.002]
[1748282966350,1.55117646,109090.0,109080.0,0.002]
[1748282966578,1.29073655,109080.0,109070.0,0.01464104]
[1748282966811,1.59004211,109080.0,109070.0,0.01464104]
[1748282967039,0.26572322,109060.0,109050.0,0.03180624]
[1748282967255,1.05093752,109060.0,109050.0,0.03180624]
[1748282967502,0.25657203,109050.0,109040.0,0.35096937]
[1748282967734,0.80568077,109050.0,109040.0,1.54881337]
[1748282968384,0.80568077,109050.0,109040.0,1.537844]
[1748282968812,0.80568077,109050.0,109040.0,1.57109703]
[1748282969249,0.80768077,109050.0,109040.0,1.57209703]
[1748282970546,0.81685062,109050.0,109040.0,1.77385742]
[1748282970777,0.2769119,109050.0,109040.0,1.76468689]
[1748282970994,0.2129119,109050.0,109040.0,1.77385758]
[1748282971218,0.20374155,109050.0,109040.0,1.77385758]
[1748282971445,0.21291148,109050.0,109040.0,1.77385766]
[1748282971659,0.21291148,109050.0,109040.0,1.77385775]
[1748282971873,0.24371148,109050.0,109040.0,1.77385775]
[1748282972431,0.24371148,109050.0,109040.0,1.77565626]
[1748282972669,0.24371148,109050.0,109040.0,1.78482712]
[1748282972872,0.26604188,109050.0,109040.0,1.59223734]
[1748282973480,0.26604188,109050.0,109040.0,1.58152874]
[1748282973703,0.81515062,109050.0,109040.0,1.57055937]
[1748282973973,0.81515062,109050.0,109040.0,1.57861653]
[1748282975033,0.26604188,109050.0,109040.0,1.76203545]
[1748282975238,0.81515062,109050.0,109040.0,1.76203545]
[1748282975632,0.81515062,109050.0,109040.0,1.77120631]
[1748282975846,0.81515062,109050.0,109040.0,1.76203545]
[1748282976067,0.81515062,109050.0,109040.0,1.57861653]
[1748282976266,0.81515062,109050.0,109040.0,1.56944559]
[1748282976705,0.81515062,109050.0,109040.0,1.32594185]
[1748282977366,0.81515062,109050.0,109040.0,1.24126797]
[1748282977639,0.26604188,109050.0,109040.0,1.24126797]
[1748282977809,0.20374188,109050.0,109040.0,1.43385775]
[1748282978267,0.20374188,109050.0,109040.0,1.42468689]
[1748282978649,0.20374188,109050.0,109040.0,1.76468689]
[1748282979242,0.20374188,109050.0,109040.0,1.77385775]
[1748282979444,0.20374188,109050.0,109040.0,1.78302852]
[1748282980960,0.20374188,109050.0,109040.0,1.79219913]
[1748282981179,0.20374188,109050.0,109040.0,1.79219921]
[1748282982278,0.23504188,109050.0,109040.0,1.80136982]
[1748282982432,0.23504188,109050.0,109040.0,1.79219921]
[1748282982847,0.23504188,109050.0,109040.0,1.80136982]
[1748282983052,0.20374188,109050.0,109040.0,1.79219921]
[1748282983719,0.20374188,109050.0,109040.0,1.80136982]
[1748282983938,0.20374188,109050.0,109040.0,1.79219921]
[1748282984725,0.23634188,109050.0,109040.0,1.79219921]
[1748282985854,0.26694188,109050.0,109040.0,1.79219921]
[1748282986064,0.27611198,109050.0,109040.0,1.80136973]
[1748282987039,0.27611198,109050.0,109040.0,1.8123391]
[1748282987863,0.27611198,109050.0,109040.0,1.8123386]
[1748282988690,0.27611198,109050.0,109040.0,1.80316816]
[1748282989748,0.09270988,109050.0,109040.0,1.80316816]
[1748282990000,0.08353978,109050.0,109040.0,1.81233809]
[1748282990235,0.02950879,109050.0,109040.0,1.81233809]
[1748282990823,0.28418091,109050.0,109040.0,1.81233809]
[1748282991579,0.28418091,109050.0,109040.0,1.94980774]
[1748282991804,0.28418091,109050.0,109040.0,1.93146678]
[1748282992029,0.83328965,109050.0,109040.0,1.94063739]
[1748282992243,0.80578086,109050.0,109040.0,1.91312532]
[1748282992449,0.80578086,109050.0,109040.0,1.92229609]
[1748282992909,0.80578086,109050.0,109040.0,1.93146678]
[1748282993212,0.25667212,109050.0,109040.0,1.93513845]
[1748282993596,0.25667212,109050.0,109040.0,1.92596776]
[1748282993930,0.80578086,109050.0,109040.0,1.93513845]
[1748282995062,0.80578086,109050.0,109040.0,1.92596776]
[1748282995292,0.80578086,109050.0,109040.0,1.89321271]
[1748282995678,0.25667212,109050.0,109040.0,1.9023834]
[1748282996704,0.25667212,109050.0,109040.0,1.88774236]
[1748282998169,0.25667212,109050.0,109040.0,1.89691297]
[1748283000409,0.25667212,109050.0,109040.0,1.8694009]
[1748283000624,0.25667212,109050.0,109040.0,1.87857176]
[1748283000834,0.25667212,109050.0,109040.0,1.88774245]
[1748283001050,0.25667212,109050.0,109040.0,1.89691306]
[1748283001927,0.25667212,109050.0,109040.0,1.88774245]
[1748283002147,0.25667212,109050.0,109040.0,1.89691297]
[1748283004314,0.26584188,109050.0,109040.0,1.7227609]
[1748283004574,0.27501198,109050.0,109040.0,1.88774253]
[1748283004787,0.27501198,109050.0,109040.0,1.89691314]
[1748283004976,0.27501198,109050.0,109040.0,1.90608366]
[1748283006631,0.27501198,109050.0,109040.0,1.72808091]
[1748283007464,0.27501198,109050.0,109040.0,1.74274043]
[1748283009600,0.27501198,109050.0,109040.0,1.75191087]
[1748283011480,0.27501198,109050.0,109040.0,1.60527087]
[1748283011940,0.27501198,109050.0,109040.0,1.75191087]
[1748283014493,0.27501198,109050.0,109040.0,1.76909118]
[1748283016097,0.82412072,109050.0,109040.0,1.39317906]
[1748283016321,0.99401803,109050.0,109040.0,0.55604281]
[1748283016524,0.99401803,109050.0,109040.0,0.37333781]
[1748283016942,1.14069803,109050.0,109040.0,0.03333781]
[1748283017157,1.14069803,109050.0,109040.0,0.37333781]
[1748283017772,1.05117652,109050.0,109040.0,0.50094781]
[1748283017965,1.05117652,109050.0,109040.0,0.49727611]
[1748283019000,0.90453652,109050.0,109040.0,0.49727611]
[1748283020616,0.26588222,109050.0,109040.0,0.68986597]
[1748283020847,0.07330976,109050.0,109040.0,0.69903674]
[1748283021048,0.07330976,109050.0,109040.0,0.87318822]
[1748283021049,0.0916492,109050.0,109040.0,0.87318822]
[1748283021227,0.02037919,109050.0,109040.0,0.87318822]
[1748283021436,0.0295492,109050.0,109040.0,0.87318822]
[1748283021647,0.05327927,109050.0,109040.0,0.87685992]
[1748283021799,0.0624492,109050.0,109040.0,0.87685992]
[1748283022008,0.09424912,109050.0,109040.0,0.87685992]
[1748283022213,0.10341905,109050.0,109040.0,0.87685992]
[1748283022798,0.10341905,109050.0,109040.0,0.8622004]
[1748283023984,0.09424912,109050.0,109040.0,0.8622004]
[1748283024186,0.10341905,109050.0,109040.0,0.8622004]
[1748283025254,0.08507919,109050.0,109040.0,0.8622004]
[1748283025616,0.09424912,109050.0,109040.0,0.8622004]